fUST/lending_fUST_20250905
["ID","MTS","AMOUNT","RATE_DAILY","PERIOD"]
[383578149,1757003442221,-480.0,0.00014246,2]
[383578150,1757003442231,-480.0,0.00014246,2]
[383578151,1757003442240,-480.0,0.00014246,2]
[383578152,1757003442250,-480.0,0.00014246,2]
[383578153,1757003442260,-1686.66,0.00014246,2]
[383578154,1757003442269,-480.0,0.00014246,2]
[383578155,1757003442279,-480.0,0.00014246,2]
[383578156,1757003442288,-689.81,0.00014246,2]
[383578157,1757003442297,-480.0,0.00014246,2]
[383578158,1757003442307,-716.81,0.00014246,2]
[383578159,1757003442318,-831.17,0.00014246,2]
[383578160,1757003442328,-480.0,0.00014246,2]
[383578161,1757003442337,-495.78,0.00014246,2]
[383578162,1757003442347,-480.0,0.00014246,2]
[383578163,1757003442356,-480.0,0.00014246,2]
[383578164,1757003442366,-968.59,0.00014246,2]
[383578165,1757003442375,-480.0,0.00014246,2]
[383578166,1757003442385,-721.25,0.00014246,2]
[383578167,1757003442394,-480.0,0.00014246,2]
[383578168,1757003442404,-1363.8,0.00014246,2]
[383578169,1757003442412,-480.0,0.00014246,2]
[383578170,1757003442422,-1383.07,0.00014246,2]
[383578171,1757003442433,-480.0,0.00014246,2]
[383578172,1757003442442,-1377.34,0.00014246,2]
[383578173,1757003442452,-480.0,0.00014246,2]
[383578174,1757003442462,-480.0,0.00014246,2]
[383578175,1757003442474,-480.0,0.00014246,2]
[383578176,1757003442483,-480.0,0.00014246,2]
[383578177,1757003442493,-502.59,0.00014246,2]
[383578178,1757003442503,-480.0,0.00014246,2]
[383578179,1757003442513,-2777.64,0.00014246,2]
[383578180,1757003442522,-1014.73,0.00014246,2]
[383578181,1757003442532,-480.0,0.00014246,2]
[383578182,1757003442542,-480.0,0.00014246,2]
[383578183,1757003442553,-480.0,0.00014246,2]
[383578184,1757003442563,-480.0,0.00014246,2]
[383578185,1757003442572,-480.0,0.00014246,2]
[383578186,1757003442582,-480.0,0.00014246,2]
[383578187,1757003442593,-509.88,0.00014246,2]
[383578188,1757003442603,-480.0,0.00014246,2]
[383578189,1757003442613,-480.0,0.00014246,2]
[383578190,1757003442623,-480.0,0.00014246,2]
[383578191,1757003442635,-480.0,0.00014246,2]
[383578192,1757003442645,-480.0,0.00014246,2]
[383578193,1757003442655,-480.0,0.00014246,2]
[383578194,1757003442664,-480.0,0.00014246,2]
[383578195,1757003442674,-480.0,0.00014246,2]
[383578196,1757003442682,-844.95,0.00014246,2]
[383578197,1757003442691,-480.0,0.00014246,2]
[383578198,1757003442700,-532.07,0.00014246,2]
[383578199,1757003442710,-1089.53,0.00014246,2]
[383578200,1757003442720,-480.0,0.00014246,2]
[383578201,1757003442729,-1420.35,0.00014246,2]
[383578202,1757003442739,-480.0,0.00014246,2]
[383578203,1757003442749,-882.16,0.00014246,2]
[383578204,1757003442760,-480.0,0.00014246,2]
[383578205,1757003442769,-1452.94,0.00014246,2]
[383578206,1757003442782,-781.01,0.00014246,2]
[383578207,1757003442792,-480.0,0.00014246,2]
[383578208,1757003442802,-480.0,0.00014246,2]
[383578209,1757003442811,-480.0,0.00014246,2]
[383578210,1757003442822,-480.0,0.00014246,2]
[383578211,1757003442832,-480.0,0.00014246,2]
[383578212,1757003442841,-480.0,0.00014246,2]
[383578213,1757003442851,-480.0,0.00014246,2]
[383578214,1757003442860,-272.58490942,0.00014246,2]
[383578215,1757003442870,-480.0,0.00014246,2]
[383578216,1757003442879,-480.0,0.00014246,2]
[383578217,1757003442889,-480.0,0.00014246,2]
[383578218,1757003442900,-480.0,0.00014246,2]
[383578219,1757003442910,-6689.65726043,0.000143,2]
[383578220,1757003442920,-270.210392,0.00014321,2]
[383578221,1757003442930,-151.0,0.00014321,2]
[383578222,1757003442941,-10567.6827771,0.00014321,2]
[383578223,1757003442951,-3753.38,0.00014408,2]
[383578224,1757003442961,-1000.0,0.0001441,2]
[383578225,1757003442971,-1020.33824563,0.0001441,2]
[383578226,1757003442983,-517.28109838,0.0001442,2]
[383578227,1757003442994,-251.86565476,0.0001452,2]
[383578228,1757003443004,-470.0,0.0001452,2]
[383578229,1757003443013,-480.0,0.0001452,2]
[383578230,1757003443023,-480.0,0.0001452,2]
[383578231,1757003443033,-480.0,0.0001452,2]
[383578232,1757003443043,-480.0,0.0001452,2]
[383578233,1757003443053,-480.0,0.0001452,2]
[383578234,1757003443062,-1141.58,0.0001452,2]
[383578235,1757003443073,-480.0,0.0001452,2]
[383578236,1757003443083,-480.0,0.0001452,2]
[383578237,1757003443092,-816.43,0.0001452,2]
[383578238,1757003443102,-480.0,0.0001452,2]
[383578239,1757003443112,-480.0,0.0001452,2]
[383578240,1757003443122,-480.0,0.0001452,2]
[383578241,1757003443131,-480.0,0.0001452,2]
[383578242,1757003443141,-480.0,0.0001452,2]
[383578243,1757003443151,-480.0,0.0001452,2]
[383578244,1757003443161,-480.0,0.0001452,2]
[383578245,1757003443171,-480.0,0.0001452,2]
[383578246,1757003443181,-1374.84,0.0001452,2]
[383578247,1757003443191,-480.0,0.0001452,2]
[383578248,1757003443201,-434.8342978,0.0001452,2]
[383578249,1757003443211,-480.0,0.0001452,2]
[383578250,1757003443220,-480.0,0.0001452,2]
[383578251,1757003443230,-480.0,0.0001452,2]
[383578252,1757003443240,-1686.66,0.0001452,2]
[383578253,1757003443250,-480.0,0.0001452,2]
[383578255,1757003443259,-480.0,0.0001452,2]
[383578257,1757003443269,-689.81,0.0001452,2]
[383578259,1757003443279,-480.0,0.0001452,2]
[383578260,1757003443288,-716.81,0.0001452,2]
[383578261,1757003443298,-831.17,0.0001452,2]
[383578262,1757003443308,-480.0,0.0001452,2]
[383578263,1757003443318,-495.78,0.0001452,2]
[383578264,1757003443328,-480.0,0.0001452,2]
[383578265,1757003443338,-480.0,0.0001452,2]
[383578266,1757003443347,-968.59,0.0001452,2]
[383578268,1757003443357,-480.0,0.0001452,2]
[383578270,1757003443366,-721.25,0.0001452,2]
[383578271,1757003443375,-480.0,0.0001452,2]
[383578272,1757003443384,-1363.8,0.0001452,2]
[383578273,1757003443394,-480.0,0.0001452,2]
[383578274,1757003443403,-1383.07,0.0001452,2]
[383578275,1757003443413,-480.0,0.0001452,2]
[383578276,1757003443423,-1377.34,0.0001452,2]
[383578277,1757003443433,-480.0,0.0001452,2]
[383578278,1757003443442,-480.0,0.0001452,2]
[383578279,1757003443452,-480.0,0.0001452,2]
[383578280,1757003443461,-480.0,0.0001452,2]
[383578281,1757003443471,-502.59,0.0001452,2]
[383578282,1757003443480,-480.0,0.0001452,2]
[383578283,1757003443489,-2777.64,0.0001452,2]
[383578284,1757003443498,-1014.73,0.0001452,2]
[383578285,1757003443506,-151.0,0.0001452,2]
[383578286,1757003443515,-151.0,0.0001452,2]
[383578287,1757003443524,-480.0,0.0001452,2]
[383578288,1757003443532,-480.0,0.0001452,2]
[383578289,1757003443541,-480.0,0.0001452,2]
[383578290,1757003443549,-480.0,0.0001452,2]
[383578291,1757003443558,-480.0,0.0001452,2]
[383578292,1757003443567,-480.0,0.0001452,2]
[383578293,1757003443575,-509.88,0.0001452,2]
[383578294,1757003443584,-480.0,0.0001452,2]
[383578295,1757003443592,-480.0,0.0001452,2]
[383578296,1757003443602,-480.0,0.0001452,2]
[383578297,1757003443610,-480.0,0.0001452,2]
[383578298,1757003443617,-480.0,0.0001452,2]
[383578299,1757003443623,-480.0,0.0001452,2]
[383578300,1757003443631,-480.0,0.0001452,2]
[383578301,1757003443639,-480.0,0.0001452,2]
[383578302,1757003443648,-844.95,0.0001452,2]
[383578303,1757003443656,-480.0,0.0001452,2]
[383578304,1757003443663,-532.07,0.0001452,2]
[383578305,1757003443674,-1089.53,0.0001452,2]
[383578306,1757003443683,-480.0,0.0001452,2]
[383578307,1757003443693,-1420.35,0.0001452,2]
[383578308,1757003443702,-480.0,0.0001452,2]
[383578309,1757003443712,-882.16,0.0001452,2]
[383578310,1757003443721,-480.0,0.0001452,2]
[383578311,1757003443731,-1452.94,0.0001452,2]
[383578312,1757003443741,-781.01,0.0001452,2]
[383578313,1757003443751,-480.0,0.0001452,2]
[383578314,1757003443760,-480.0,0.0001452,2]
[383578315,1757003443769,-480.0,0.0001452,2]
[383578316,1757003443779,-480.0,0.0001452,2]
[383578317,1757003443789,-480.0,0.0001452,2]
[383578318,1757003443799,-480.0,0.0001452,2]
[383578319,1757003443808,-480.0,0.0001452,2]
[383578320,1757003443819,-480.0,0.0001452,2]
[383578321,1757003443828,-480.0,0.0001452,2]
[383578322,1757003443838,-480.0,0.0001452,2]
[383578323,1757003443847,-480.0,0.0001452,2]
[383578324,1757003443857,-6000.0,0.00014604,2]
[383578325,1757003443866,-151.0,0.00014604,2]
[383578326,1757003443877,-289.974,0.00014666,2]
[383578327,1757003443887,-150.0,0.00014666,2]
[383578328,1757003443897,-150.0,0.00014666,2]
[383578329,1757003443907,-150.0,0.00014666,2]
[383578330,1757003443917,-150.0,0.00014666,2]
[383578331,1757003443926,-150.0,0.00014666,2]
[383578332,1757003443936,-150.0,0.00014666,2]
[383578333,1757003443946,-150.0,0.00014666,2]
[383578334,1757003443955,-975.0,0.00014666,2]
[383578335,1757003443965,-2153.0,0.00014666,2]
[383578336,1757003443974,-633.0,0.00014666,2]
[383578337,1757003443984,-409.0,0.00014666,2]
[383578338,1757003443993,-425.265,0.00014666,2]
[383578339,1757003444003,-500.0,0.00014747,2]
[383578340,1757003444013,-500.0,0.00014747,2]
[383578341,1757003444022,-470.0,0.00014794,2]
[383578342,1757003444032,-480.0,0.00014794,2]
[383578343,1757003444042,-480.0,0.00014794,2]
[383578344,1757003444051,-480.0,0.00014794,2]
[383578345,1757003444062,-480.0,0.00014794,2]
[383578346,1757003444073,-480.0,0.00014794,2]
[383578347,1757003444082,-1141.58,0.00014794,2]
[383578348,1757003444091,-327.73144169,0.00014794,2]
[383578349,1757003444100,-480.0,0.00014794,2]
[383578350,1757003444109,-816.43,0.00014794,2]
[383578351,1757003444118,-480.0,0.00014794,2]
[383578352,1757003444128,-480.0,0.00014794,2]
[383578353,1757003444137,-480.0,0.00014794,2]
[383578354,1757003444146,-480.0,0.00014794,2]
[383578355,1757003444155,-480.0,0.00014794,2]
[383578356,1757003444164,-207.78918968,0.00014794,2]
[383578357,1757003444174,-480.0,0.00014794,2]
[383578358,1757003444183,-480.0,0.00014794,2]
[383578359,1757003444193,-1374.84,0.00014794,2]
[383578360,1757003444202,-480.0,0.00014794,2]
[383578361,1757003444211,-480.0,0.00014794,2]
[383578362,1757003444220,-480.0,0.00014794,2]
[383578363,1757003444229,-480.0,0.00014794,2]
[383578364,1757003444239,-1686.66,0.00014794,2]
[383578365,1757003444248,-480.0,0.00014794,2]
[383578366,1757003444257,-480.0,0.00014794,2]
[383578367,1757003444267,-689.81,0.00014794,2]
[383578368,1757003444276,-480.0,0.00014794,2]
[383578369,1757003444286,-716.81,0.00014794,2]
[383578370,1757003444296,-831.17,0.00014794,2]
[383578371,1757003444308,-480.0,0.00014794,2]
[383578372,1757003444318,-495.78,0.00014794,2]
[383578373,1757003444328,-480.0,0.00014794,2]
[383578374,1757003444337,-480.0,0.00014794,2]
[383578375,1757003444347,-968.59,0.00014794,2]
[383578376,1757003444357,-480.0,0.00014794,2]
[383578377,1757003444367,-721.25,0.00014794,2]
[383578378,1757003444376,-480.0,0.00014794,2]
[383578379,1757003444386,-1363.8,0.00014794,2]
[383578380,1757003444491,-363.52251526,0.00014794,2]
[383578381,1757003444710,-116.47748474,0.00014794,2]
[383578382,1757003444721,-1383.07,0.00014794,2]
[383578383,1757003444731,-480.0,0.00014794,2]
[383578384,1757003444740,-1377.34,0.00014794,2]
[383578385,1757003444751,-480.0,0.00014794,2]
[383578386,1757003444760,-480.0,0.00014794,2]
[383578387,1757003444769,-480.0,0.00014794,2]
[383578388,1757003444779,-480.0,0.00014794,2]
[383578389,1757003444788,-502.59,0.00014794,2]
[383578390,1757003444798,-480.0,0.00014794,2]
[383578391,1757003444807,-2777.64,0.00014794,2]
[383578392,1757003444819,-1014.73,0.00014794,2]
[383578393,1757003444829,-151.0,0.00014794,2]
[383578394,1757003444838,-151.0,0.00014794,2]
[383578395,1757003444847,-135.7729867,0.00014794,2]
[383578406,1757003447061,-344.2270133,0.00014794,2]
[383578407,1757003447071,-480.0,0.00014794,2]
[383578408,1757003447080,-480.0,0.00014794,2]
[383578409,1757003447090,-480.0,0.00014794,2]
[383578410,1757003447099,-480.0,0.00014794,2]
[383578411,1757003447110,-480.0,0.00014794,2]
[383578412,1757003447119,-509.88,0.00014794,2]
[383578413,1757003447130,-480.0,0.00014794,2]
[383578414,1757003447139,-480.0,0.00014794,2]
[383578415,1757003447149,-480.0,0.00014794,2]
[383578416,1757003447159,-480.0,0.00014794,2]
[383578417,1757003447169,-480.0,0.00014794,2]
[383578418,1757003447179,-480.0,0.00014794,2]
[383578419,1757003447189,-480.0,0.00014794,2]
[383578420,1757003447198,-480.0,0.00014794,2]
[383578421,1757003447207,-844.95,0.00014794,2]
[383578422,1757003447217,-480.0,0.00014794,2]
[383578423,1757003447226,-532.07,0.00014794,2]
[383578424,1757003447236,-1089.53,0.00014794,2]
[383578425,1757003447245,-480.0,0.00014794,2]
[383578426,1757003447255,-1420.35,0.00014794,2]
[383578427,1757003447265,-480.0,0.00014794,2]
[383578428,1757003447274,-882.16,0.00014794,2]
[383578429,1757003447283,-256.65516955,0.00014794,2]
[383578430,1757003447293,-1452.94,0.00014794,2]
[383578431,1757003447302,-781.01,0.00014794,2]
[383578432,1757003447311,-480.0,0.00014794,2]
[383578433,1757003447322,-480.0,0.00014794,2]
[383578434,1757003447331,-480.0,0.00014794,2]
[383578435,1757003447341,-480.0,0.00014794,2]
[383578436,1757003447350,-480.0,0.00014794,2]
[383578437,1757003447360,-480.0,0.00014794,2]
[383578438,1757003447370,-558.63071465,0.00014794,2]
[383578439,1757003447379,-480.0,0.00014794,2]
[383578440,1757003447388,-480.0,0.00014794,2]
[383578441,1757003447398,-480.0,0.00014794,2]
[383578442,1757003447408,-480.0,0.00014794,2]
[383578443,1757003447418,-8000.0,0.00014884,2]
[383578444,1757003447429,-500.0,0.0001491,2]
[383578445,1757003447438,-500.0,0.0001491,2]
[383578446,1757003447447,-500.0,0.0001491,2]
[383578447,1757003447456,-500.0,0.0001491,2]
[383578448,1757003447465,-500.0,0.00014938,2]
[383578449,1757003447475,-9000.0,0.00014996,2]
[383578450,1757003447484,-1190.95894468,0.00015,2]
[383578451,1757003447494,-160.0,0.00015,2]
[383578452,1757003447503,-420.0,0.0001501,2]
[383578453,1757003447513,-309.3166848,0.00015034,2]
[383578454,1757003447522,-470.0,0.00015068,2]
[383578455,1757003447531,-480.0,0.00015068,2]
[383578456,1757003447541,-480.0,0.00015068,2]
[383578457,1757003447550,-480.0,0.00015068,2]
[383578458,1757003447559,-480.0,0.00015068,2]
[383578459,1757003447569,-480.0,0.00015068,2]
[383578460,1757003447580,-1141.58,0.00015068,2]
[383578461,1757003447589,-480.0,0.00015068,2]
[383578462,1757003447599,-816.43,0.00015068,2]
[383578463,1757003447608,-480.0,0.00015068,2]
[383578464,1757003447618,-480.0,0.00015068,2]
[383578465,1757003447627,-480.0,0.00015068,2]
[383578466,1757003447637,-480.0,0.00015068,2]
[383578467,1757003447648,-480.0,0.00015068,2]
[383578468,1757003447657,-480.0,0.00015068,2]
[383578469,1757003447666,-480.0,0.00015068,2]
[383578470,1757003447675,-1374.84,0.00015068,2]
[383578471,1757003447685,-480.0,0.00015068,2]
[383578472,1757003447694,-480.0,0.00015068,2]
[383578473,1757003447703,-480.0,0.00015068,2]
[383578474,1757003447712,-480.0,0.00015068,2]
[383578475,1757003447722,-1686.66,0.00015068,2]
[383578476,1757003447731,-480.0,0.00015068,2]
[383578477,1757003447741,-480.0,0.00015068,2]
[383578478,1757003447751,-689.81,0.00015068,2]
[383578479,1757003447760,-480.0,0.00015068,2]
[383578480,1757003447769,-716.81,0.00015068,2]
[383578481,1757003447779,-831.17,0.00015068,2]
[383578482,1757003447788,-480.0,0.00015068,2]
[383578483,1757003447797,-495.78,0.00015068,2]
[383578484,1757003447806,-581.05047725,0.00015068,2]
[383578485,1757003447816,-480.0,0.00015068,2]
[383578486,1757003447825,-968.59,0.00015068,2]
[383578487,1757003447835,-480.0,0.00015068,2]
[383578488,1757003447845,-721.25,0.00015068,2]
[383578489,1757003447855,-480.0,0.00015068,2]
[383578490,1757003447865,-1363.8,0.00015068,2]
[383578491,1757003447875,-480.0,0.00015068,2]
[383578492,1757003447884,-1383.07,0.00015068,2]
[383578493,1757003447893,-480.0,0.00015068,2]
[383578494,1757003447902,-1377.34,0.00015068,2]
[383578495,1757003447912,-480.0,0.00015068,2]
[383578496,1757003447921,-480.0,0.00015068,2]
[383578497,1757003447931,-480.0,0.00015068,2]
[383578498,1757003447940,-480.0,0.00015068,2]
[383578499,1757003447949,-502.59,0.00015068,2]
[383578500,1757003447958,-480.0,0.00015068,2]
[383578501,1757003447968,-2777.64,0.00015068,2]
[383578502,1757003447977,-1014.73,0.00015068,2]
[383578503,1757003447986,-151.0,0.00015068,2]
[383578504,1757003447997,-151.0,0.00015068,2]
[383578505,1757003448006,-480.0,0.00015068,2]
[383578506,1757003448015,-480.0,0.00015068,2]
[383578507,1757003448026,-480.0,0.00015068,2]
[383578508,1757003448035,-480.0,0.00015068,2]
[383578509,1757003448045,-480.0,0.00015068,2]
[383578510,1757003448055,-480.0,0.00015068,2]
[383578511,1757003448065,-509.88,0.00015068,2]
[383578512,1757003448075,-480.0,0.00015068,2]
[383578513,1757003448084,-480.0,0.00015068,2]
[383578514,1757003448094,-480.0,0.00015068,2]
[383578515,1757003448103,-480.0,0.00015068,2]
[383578516,1757003448113,-480.0,0.00015068,2]
[383578517,1757003448123,-480.0,0.00015068,2]
[383578518,1757003448132,-480.0,0.00015068,2]
[383578519,1757003448142,-480.0,0.00015068,2]
[383578520,1757003448151,-844.95,0.00015068,2]
[383578521,1757003448161,-481.21750671,0.00015068,2]
[383578522,1757003448171,-532.07,0.00015068,2]
[383578523,1757003448181,-1089.53,0.00015068,2]
[383578524,1757003448191,-480.0,0.00015068,2]
[383578525,1757003448199,-1420.35,0.00015068,2]
[383578526,1757003448207,-480.0,0.00015068,2]
[383578527,1757003448216,-882.16,0.00015068,2]
[383578528,1757003448225,-1452.94,0.00015068,2]
[383578529,1757003448235,-781.01,0.00015068,2]
[383578530,1757003448357,-525.52223331,0.00015068,2]
[383578531,1757003448367,-480.0,0.00015068,2]
[383578532,1757003448377,-480.0,0.00015068,2]
[383578533,1757003448388,-480.0,0.00015068,2]
[383578534,1757003448398,-480.0,0.00015068,2]
[383578535,1757003448408,-480.0,0.00015068,2]
[383578536,1757003448418,-480.0,0.00015068,2]
[383578537,1757003448428,-480.0,0.00015068,2]
[383578538,1757003448438,-480.0,0.00015068,2]
[383578539,1757003448449,-480.0,0.00015068,2]
[383578540,1757003448459,-583.3372198,0.00015181,2]
[383578541,1757003448468,-583.3372198,0.00015181,2]
[383578542,1757003448478,-583.3372198,0.00015181,2]
[383578543,1757003448488,-320.5332677,0.00015181,2]
[383578544,1757003448498,-582.1515131,0.00015181,2]
[383578545,1757003448508,-500.0,0.00015221,2]
[383578546,1757003448518,-463.02538932,0.00015295,2]
[383578547,1757003448529,-243.75027178,0.00015295,2]
[383578548,1757003448539,-500.0,0.00015313,2]
[383578549,1757003448549,-500.0,0.00015313,2]
[383578550,1757003448559,-470.0,0.00015342,2]
[383578551,1757003448569,-397.73508946,0.00015342,2]
[383578552,1757003448581,-480.0,0.00015342,2]
[383578553,1757003448591,-480.0,0.00015342,2]
[383578554,1757003448601,-480.0,0.00015342,2]
[383578555,1757003448612,-480.0,0.00015342,2]
[383578556,1757003448623,-1141.58,0.00015342,2]
[383578557,1757003448633,-480.0,0.00015342,2]
[383578558,1757003448644,-816.43,0.00015342,2]
[383578559,1757003448657,-480.0,0.00015342,2]
[383578560,1757003448667,-480.0,0.00015342,2]
[383578561,1757003448677,-480.0,0.00015342,2]
[383578562,1757003448687,-480.0,0.00015342,2]
[383578563,1757003448696,-480.0,0.00015342,2]
[383578564,1757003448706,-480.0,0.00015342,2]
[383578565,1757003448716,-480.0,0.00015342,2]
[383578566,1757003448726,-1374.84,0.00015342,2]
[383578567,1757003448736,-480.0,0.00015342,2]
[383578568,1757003448746,-480.0,0.00015342,2]
[383578569,1757003448756,-480.0,0.00015342,2]
[383578570,1757003448766,-480.0,0.00015342,2]
[383578571,1757003448776,-1686.66,0.00015342,2]
[383578572,1757003448785,-480.0,0.00015342,2]
[383578573,1757003448795,-480.0,0.00015342,2]
[383578574,1757003448804,-689.81,0.00015342,2]
[383578575,1757003448814,-480.0,0.00015342,2]
[383578576,1757003448823,-716.81,0.00015342,2]
[383578577,1757003448833,-831.17,0.00015342,2]
[383578578,1757003448844,-480.0,0.00015342,2]
[383578579,1757003448854,-495.78,0.00015342,2]
[383578580,1757003448863,-480.0,0.00015342,2]
[383578581,1757003448873,-968.59,0.00015342,2]
[383578582,1757003448883,-300.2,0.00015342,2]
[383578583,1757003448892,-721.25,0.00015342,2]
[383578584,1757003448902,-480.0,0.00015342,2]
[383578585,1757003448913,-1363.8,0.00015342,2]
[383578586,1757003448922,-480.0,0.00015342,2]
[383578587,1757003448932,-1383.07,0.00015342,2]
[383578588,1757003448941,-480.0,0.00015342,2]
[383578589,1757003448951,-1377.34,0.00015342,2]
[383578590,1757003448960,-480.0,0.00015342,2]
[383578591,1757003448970,-480.0,0.00015342,2]
[383578592,1757003448980,-480.0,0.00015342,2]
[383578593,1757003448989,-480.0,0.00015342,2]
[383578594,1757003448999,-502.59,0.00015342,2]
[383578595,1757003449009,-480.0,0.00015342,2]
[383578596,1757003449018,-2777.64,0.00015342,2]
[383578597,1757003449028,-1014.73,0.00015342,2]
[383578598,1757003449039,-151.0,0.00015342,2]
[383578599,1757003449048,-185.985098,0.00015342,2]
[383578600,1757003449058,-480.0,0.00015342,2]
[383578601,1757003449067,-480.0,0.00015342,2]
[383578602,1757003449077,-480.0,0.00015342,2]
[383578603,1757003449087,-475.67625969,0.00015342,2]
[383578604,1757003449097,-480.0,0.00015342,2]
[383578605,1757003449107,-480.0,0.00015342,2]
[383578606,1757003449116,-509.88,0.00015342,2]
[383578607,1757003449126,-227.92565972,0.00015342,2]
[383578608,1757003449136,-480.0,0.00015342,2]
[383578609,1757003449146,-480.0,0.00015342,2]
[383578610,1757003449156,-480.0,0.00015342,2]
[383578611,1757003449166,-480.0,0.00015342,2]
[383578612,1757003449176,-480.0,0.00015342,2]
[383578613,1757003449186,-480.0,0.00015342,2]
[383578614,1757003449196,-221.51965591,0.00015342,2]
[383578615,1757003449207,-844.95,0.00015342,2]
[383578616,1757003449217,-532.07,0.00015342,2]
[383578617,1757003449227,-1089.53,0.00015342,2]
[383578618,1757003449238,-480.0,0.00015342,2]
[383578619,1757003449248,-1420.35,0.00015342,2]
[383578620,1757003449257,-480.0,0.00015342,2]
[383578621,1757003449266,-882.16,0.00015342,2]
[383578622,1757003449276,-1452.94,0.00015342,2]
[383578623,1757003449286,-781.01,0.00015342,2]
[383578624,1757003449295,-480.0,0.00015342,2]
[383578625,1757003449305,-480.0,0.00015342,2]
[383578626,1757003449314,-480.0,0.00015342,2]
[383578627,1757003449324,-480.0,0.00015342,2]
[383578628,1757003449333,-480.0,0.00015342,2]
[383578629,1757003449342,-494.00992435,0.00015342,2]
[383578630,1757003449350,-480.0,0.00015342,2]
[383578631,1757003449360,-480.0,0.00015342,2]
[383578632,1757003449372,-480.0,0.00015342,2]
[383578633,1757003449381,-720.0,0.00015365,2]
[383578634,1757003449391,-3000.0,0.0001541,2]
[383578635,1757003449401,-312.526,0.00015413,2]
[383578636,1757003449411,-1000.0,0.00015457,2]
[383578637,1757003449421,-1000.0,0.00015457,2]
[383578638,1757003449430,-1000.0,0.00015457,2]
[383578639,1757003449439,-1000.0,0.00015457,2]
[383578640,1757003449449,-153.0,0.00015462,2]
[383578641,1757003449458,-168.0,0.00015519,2]
[383578642,1757003449469,-600.0,0.00015523,2]
[383578643,1757003449479,-153.0,0.00015562,2]
[383578644,1757003449491,-306.0,0.00015562,2]
[383578645,1757003449504,-153.0,0.00015562,2]
[383578646,1757003449517,-153.0,0.00015562,2]
[383578647,1757003449531,-19689.50818449,0.00015616,2]
[383578648,1757003449544,-470.0,0.00015616,2]
[383578649,1757003449555,-480.0,0.00015616,2]
[383578650,1757003449569,-480.0,0.00015616,2]
[383578651,1757003449582,-480.0,0.00015616,2]
[383578652,1757003449595,-480.0,0.00015616,2]
[383578653,1757003449607,-1141.58,0.00015616,2]
[383578654,1757003449622,-574.28663817,0.00015616,2]
[383578655,1757003449634,-816.43,0.00015616,2]
[383578656,1757003449649,-480.0,0.00015616,2]
[383578657,1757003449662,-480.0,0.00015616,2]
[383578658,1757003449675,-480.0,0.00015616,2]
[383578659,1757003449688,-549.64215282,0.00015616,2]
[383578660,1757003449700,-480.0,0.00015616,2]
[383578661,1757003449712,-480.0,0.00015616,2]
[383578662,1757003449724,-480.0,0.00015616,2]
[383578663,1757003449736,-1374.84,0.00015616,2]